[Event "*** Titled Tuesday Blitz"]
[Site "Chess.com"]
[Date "2021.04.20"]
[Round "1"]
[White "Apocalyps999"]
[Black "Zkid"]
[Result "0-1"]
[WhiteElo "2436"]
[BlackElo "2820"]
[TimeControl "180+1"]
[EndTime "10:06:28 PDT"]
[Termination "Zkid won by resignation"]

1. e4 {[%clk 0:02:58.8]} 1... e6 {[%clk 0:02:56.3]} 2. d4 {[%clk 0:02:57.9]}
2... d5 {[%clk 0:02:55.8]} 3. Nc3 {[%clk 0:02:57.8]} 3... Bb4 {[%clk 0:02:55.3]}
4. a3 {[%clk 0:02:54]} 4... Bxc3+ {[%clk 0:02:55.1]} 5. bxc3 {[%clk 0:02:54.9]}
5... dxe4 {[%clk 0:02:55.3]} 6. Qg4 {[%clk 0:02:55]} 6... Nf6 {[%clk 0:02:55.9]}
7. Qxg7 {[%clk 0:02:55.2]} 7... Rg8 {[%clk 0:02:56.5]} 8. Qh6 {[%clk 0:02:55.9]}
8... c5 {[%clk 0:02:57]} 9. Ne2 {[%clk 0:02:54]} 9... Nbd7 {[%clk 0:02:52]} 10.
Ng3 {[%clk 0:02:48.2]} 10... cxd4 {[%clk 0:02:23.9]} 11. cxd4 {[%clk 0:02:46.2]}
11... Qc7 {[%clk 0:02:16.4]} 12. Bd2 {[%clk 0:02:33.6]} 12... b6 {[%clk
0:02:10.6]} 13. Bb5 {[%clk 0:02:30.8]} 13... Rg6 {[%clk 0:02:03.7]} 14. Qe3
{[%clk 0:02:29.6]} 14... Bb7 {[%clk 0:01:58.3]} 15. O-O {[%clk 0:02:26.1]} 15...
h5 {[%clk 0:01:53.9]} 16. c4 {[%clk 0:01:40.1]} 16... h4 {[%clk 0:01:50.5]} 17.
Ne2 {[%clk 0:01:38.5]} 17... Ng4 {[%clk 0:01:49.2]} 18. Qf4 {[%clk 0:01:36.2]}
18... e5 {[%clk 0:01:30.5]} 19. dxe5 {[%clk 0:01:17.7]} 19... O-O-O {[%clk
0:01:21.7]} 20. Bxd7+ {[%clk 0:00:30.5]} 20... Rxd7 {[%clk 0:01:19.7]} 21. Bc3
{[%clk 0:00:26.6]} 21... Qxc4 {[%clk 0:01:06.7]} 22. Rac1 {[%clk 0:00:19.1]}
22... Qxe2 {[%clk 0:00:55.9]} 23. e6 {[%clk 0:00:19.1]} 23... Rxe6 {[%clk
0:00:50.9]} 24. Rfe1 {[%clk 0:00:13.9]} 24... Qxf2+ {[%clk 0:00:48.2]} 25. Qxf2
{[%clk 0:00:14.8]} 25... Nxf2 {[%clk 0:00:48.8]} 26. Kxf2 {[%clk 0:00:15.6]}
26... Kb8 {[%clk 0:00:42.9]} 27. Bb4 {[%clk 0:00:15.1]} 27... a5 {[%clk
0:00:40.5]} 28. Bc3 {[%clk 0:00:15.3]} 28... Rd3 {[%clk 0:00:37.8]} 29. Ba1
{[%clk 0:00:13.3]} 29... Rxa3 {[%clk 0:00:36.8]} 30. Re2 {[%clk 0:00:12.7]}
30... e3+ {[%clk 0:00:36]} 31. Kf1 {[%clk 0:00:12.4]} 31... Ba6 {[%clk
0:00:35.6]} 0-1

[Event "*** Titled Tuesday Blitz"]
[Site "Chess.com"]
[Date "2021.04.20"]
[Round "1"]
[White "LittleMyMoomin"]
[Black "Cambek64"]
[Result "0-1"]
[WhiteElo "1905"]
[BlackElo "2478"]
[TimeControl "180+1"]
[EndTime "10:06:29 PDT"]
[Termination "Cambek64 won by resignation"]

1. d4 {[%clk 0:03:00.2]} 1... d5 {[%clk 0:02:59.2]} 2. c4 {[%clk 0:02:59]} 2...
dxc4 {[%clk 0:02:58.5]} 3. e3 {[%clk 0:02:58.1]} 3... e6 {[%clk 0:02:55.3]} 4.
Bxc4 {[%clk 0:02:58]} 4... Nf6 {[%clk 0:02:55.8]} 5. Nf3 {[%clk 0:02:58]} 5...
c5 {[%clk 0:02:56]} 6. Nc3 {[%clk 0:02:56.9]} 6... a6 {[%clk 0:02:55.8]} 7. O-O
{[%clk 0:02:52.8]} 7... b5 {[%clk 0:02:55.6]} 8. Bd3 {[%clk 0:02:50.6]} 8... Bb7
{[%clk 0:02:55.5]} 9. Qc2 {[%clk 0:02:21.5]} 9... Nc6 {[%clk 0:02:51.8]} 10.
dxc5 {[%clk 0:02:17.3]} 10... Nb4 {[%clk 0:02:50.1]} 11. Bxb5+ {[%clk
0:02:04.1]} 11... axb5 {[%clk 0:02:48.2]} 12. Qb3 {[%clk 0:02:03.2]} 12... Bxc5
{[%clk 0:02:35.7]} 13. Rd1 {[%clk 0:01:57.7]} 13... Qb6 {[%clk 0:02:32.7]} 14.
a3 {[%clk 0:01:52.3]} 14... Nc6 {[%clk 0:02:06.8]} 15. Nxb5 {[%clk 0:01:50.4]}
15... O-O {[%clk 0:01:50.2]} 16. a4 {[%clk 0:01:24.4]} 16... Nb4 {[%clk
0:01:33.6]} 17. Bd2 {[%clk 0:01:15.8]} 17... Bd5 {[%clk 0:01:32.7]} 18. Qc3
{[%clk 0:01:04.6]} 18... Ne4 {[%clk 0:01:30.6]} 19. Qe5 {[%clk 0:00:53.5]} 19...
f6 {[%clk 0:01:30.3]} 20. Qf4 {[%clk 0:00:49]} 20... Nd3 {[%clk 0:01:13.1]} 21.
Qh4 {[%clk 0:00:36.7]} 21... Ndxf2 {[%clk 0:01:02.2]} 22. b4 {[%clk 0:00:20.5]}
22... Bxe3 {[%clk 0:00:52]} 23. Bxe3 {[%clk 0:00:04.5]} 23... Qxe3 {[%clk
0:00:50.6]} 24. Kf1 {[%clk 0:00:03.8]} 24... Nxd1 {[%clk 0:00:46.6]} 25. Rxd1
{[%clk 0:00:03.5]} 25... Bc4+ {[%clk 0:00:38.7]} 0-1

[Event "*** Titled Tuesday Blitz"]
[Site "Chess.com"]
[Date "2021.04.20"]
[Round "1"]
[White "ENajer77"]
[Black "Caterpiller35"]
[Result "1-0"]
[WhiteElo "2680"]
[BlackElo "2372"]
[TimeControl "180+1"]
[EndTime "10:06:31 PDT"]
[Termination "ENajer77 won by resignation"]

1. d4 {[%clk 0:02:58.3]} 1... Nf6 {[%clk 0:02:59.9]} 2. c4 {[%clk 0:02:57.7]}
2... e6 {[%clk 0:03:00.5]} 3. Nc3 {[%clk 0:02:57.4]} 3... Bb4 {[%clk 0:03:01.1]}
4. e3 {[%clk 0:02:57.1]} 4... d5 {[%clk 0:02:57.6]} 5. Ne2 {[%clk 0:02:56.9]}
5... O-O {[%clk 0:02:56.5]} 6. a3 {[%clk 0:02:56.8]} 6... Be7 {[%clk 0:02:52.9]}
7. Nf4 {[%clk 0:02:56.1]} 7... dxc4 {[%clk 0:02:50.7]} 8. Bxc4 {[%clk
0:02:55.5]} 8... c5 {[%clk 0:02:49.4]} 9. dxc5 {[%clk 0:02:55]} 9... Qxd1+
{[%clk 0:02:48.3]} 10. Kxd1 {[%clk 0:02:55.6]} 10... Bxc5 {[%clk 0:02:48.2]} 11.
Ke2 {[%clk 0:02:53]} 11... Nbd7 {[%clk 0:02:46.3]} 12. Nd3 {[%clk 0:02:36.7]}
12... Be7 {[%clk 0:02:45.9]} 13. e4 {[%clk 0:02:36.5]} 13... b6 {[%clk
0:02:38.5]} 14. Be3 {[%clk 0:02:26.9]} 14... Bb7 {[%clk 0:02:38.2]} 15. f3
{[%clk 0:02:27.1]} 15... Rac8 {[%clk 0:02:38.1]} 16. Bb5 {[%clk 0:02:25.6]}
16... Rfd8 {[%clk 0:02:35]} 17. Rac1 {[%clk 0:02:13.1]} 17... Nc5 {[%clk
0:02:16.1]} 18. Nxc5 {[%clk 0:02:08.1]} 18... Bxc5 {[%clk 0:02:17]} 19. Rhd1
{[%clk 0:02:02.2]} 19... Bxe3 {[%clk 0:02:15.2]} 20. Rxd8+ {[%clk 0:02:01.2]}
20... Rxd8 {[%clk 0:02:13.6]} 21. Kxe3 {[%clk 0:02:01.9]} 21... Rc8 {[%clk
0:02:09.2]} 22. g4 {[%clk 0:01:47.5]} 22... Kf8 {[%clk 0:02:05.6]} 23. h4 {[%clk
0:01:46.8]} 23... Ke7 {[%clk 0:02:04.6]} 24. e5 {[%clk 0:01:36.5]} 24... Ne8
{[%clk 0:01:53.7]} 25. Rd1 {[%clk 0:01:33.6]} 25... Rd8 {[%clk 0:01:45.5]} 26.
Rxd8 {[%clk 0:01:23.3]} 26... Kxd8 {[%clk 0:01:46.4]} 27. Bxe8 {[%clk
0:01:23.4]} 27... Kxe8 {[%clk 0:01:47.3]} 28. Nb5 {[%clk 0:01:23.8]} 28... Bc6
{[%clk 0:01:33.5]} 29. Nxa7 {[%clk 0:01:07.7]} 29... Bd7 {[%clk 0:01:33.6]} 30.
Kd4 {[%clk 0:01:05.1]} 30... Kd8 {[%clk 0:01:33.9]} 31. Kc4 {[%clk 0:01:05]}
31... Kc7 {[%clk 0:01:31.1]} 32. Nb5+ {[%clk 0:00:59.5]} 32... Kd8 {[%clk
0:01:26.5]} 33. f4 {[%clk 0:00:52.3]} 33... Bc6 {[%clk 0:01:25.3]} 34. g5 {[%clk
0:00:47.7]} 34... Ke7 {[%clk 0:01:23.4]} 35. Nd4 {[%clk 0:00:45.6]} 35... Be8
{[%clk 0:01:22.1]} 36. b4 {[%clk 0:00:36.4]} 36... f6 {[%clk 0:01:21.8]} 37. b5
{[%clk 0:00:36.1]} 37... fxg5 {[%clk 0:01:20.8]} 38. fxg5 {[%clk 0:00:35.7]}
38... h6 {[%clk 0:01:19.7]} 39. gxh6 {[%clk 0:00:32.2]} 39... gxh6 {[%clk
0:01:20.6]} 40. a4 {[%clk 0:00:32.2]} 40... Kf7 {[%clk 0:01:19.6]} 41. Kb4
{[%clk 0:00:31.6]} 41... Bd7 {[%clk 0:01:18.6]} 42. a5 {[%clk 0:00:31.6]} 42...
bxa5+ {[%clk 0:01:19.5]} 43. Kxa5 {[%clk 0:00:31.7]} 43... Kg6 {[%clk
0:01:19.4]} 44. b6 {[%clk 0:00:32]} 44... Bc8 {[%clk 0:01:19.4]} 45. Kb5 {[%clk
0:00:28.5]} 45... Kh5 {[%clk 0:01:18.9]} 46. Kc6 {[%clk 0:00:28.1]} 46... Kxh4
{[%clk 0:01:18.7]} 47. Kc7 {[%clk 0:00:28.4]} 47... Ba6 {[%clk 0:01:18.8]} 48.
Nxe6 {[%clk 0:00:29]} 1-0

[Event "*** Titled Tuesday Blitz"]
[Site "Chess.com"]
[Date "2021.04.20"]
[Round "1"]
[White "shineatchess"]
[Black "sergeikim"]
[Result "0-1"]
[WhiteElo "2201"]
[BlackElo "2532"]
[TimeControl "180+1"]
[EndTime "10:06:32 PDT"]
[Termination "sergeikim won by resignation"]

1. e4 {[%clk 0:03:00.1]} 1... e5 {[%clk 0:02:59.7]} 2. Nf3 {[%clk 0:02:59.7]}
2... Nc6 {[%clk 0:02:59.6]} 3. Nc3 {[%clk 0:02:59.8]} 3... Nf6 {[%clk
0:02:58.9]} 4. Bb5 {[%clk 0:02:59.6]} 4... Bb4 {[%clk 0:02:57.7]} 5. O-O {[%clk
0:02:58.1]} 5... O-O {[%clk 0:02:57.5]} 6. d3 {[%clk 0:02:58]} 6... d6 {[%clk
0:02:57.6]} 7. Ne2 {[%clk 0:02:57.8]} 7... Ne7 {[%clk 0:02:56.4]} 8. c3 {[%clk
0:02:58]} 8... Ba5 {[%clk 0:02:55.7]} 9. Ng3 {[%clk 0:02:58]} 9... Ng6 {[%clk
0:02:55.5]} 10. d4 {[%clk 0:02:56.1]} 10... c6 {[%clk 0:02:54.6]} 11. Bd3 {[%clk
0:02:54.9]} 11... Re8 {[%clk 0:02:53.2]} 12. Bc2 {[%clk 0:02:51.5]} 12... h6
{[%clk 0:02:51.7]} 13. h3 {[%clk 0:02:51.3]} 13... a6 {[%clk 0:02:48.8]} 14. Re1
{[%clk 0:02:39.2]} 14... Bb6 {[%clk 0:02:36.8]} 15. Be3 {[%clk 0:02:30.9]} 15...
Ba7 {[%clk 0:02:31.3]} 16. Qd2 {[%clk 0:02:27.3]} 16... Kh7 {[%clk 0:02:29.9]}
17. Rad1 {[%clk 0:02:24.5]} 17... Qc7 {[%clk 0:02:23.1]} 18. Qc1 {[%clk
0:01:37.6]} 18... Be6 {[%clk 0:02:15.7]} 19. a3 {[%clk 0:01:34.1]} 19... b5
{[%clk 0:02:14.5]} 20. b4 {[%clk 0:01:32.5]} 20... a5 {[%clk 0:02:06]} 21. Nf5
{[%clk 0:01:16]} 21... Ng8 {[%clk 0:02:03]} 22. dxe5 {[%clk 0:01:03.5]} 22...
dxe5 {[%clk 0:02:00.9]} 23. Nd6 {[%clk 0:00:49.6]} 23... Red8 {[%clk 0:01:52]}
24. Bc5 {[%clk 0:00:48.9]} 24... Bb6 {[%clk 0:01:50]} 25. Nxe5 {[%clk
0:00:37.2]} 25... Nxe5 {[%clk 0:01:47.7]} 26. f4 {[%clk 0:00:34.8]} 26... Rxd6
{[%clk 0:01:43.8]} 27. fxe5 {[%clk 0:00:32.3]} 27... Rxd1 {[%clk 0:01:39]} 28.
Rxd1 {[%clk 0:00:27.4]} 28... Bxc5+ {[%clk 0:01:37.5]} 29. bxc5 {[%clk
0:00:25.8]} 29... Qxe5 {[%clk 0:01:37.4]} 30. Qe3 {[%clk 0:00:25.9]} 30... Nf6
{[%clk 0:01:27.9]} 31. Rd6 {[%clk 0:00:24.6]} 31... b4 {[%clk 0:01:23.4]} 32.
cxb4 {[%clk 0:00:21.8]} 32... axb4 {[%clk 0:01:23.5]} 33. axb4 {[%clk
0:00:20.5]} 33... Ra2 {[%clk 0:01:21.1]} 34. Bd1 {[%clk 0:00:18.3]} 34... Nxe4
{[%clk 0:01:10]} 35. Rd4 {[%clk 0:00:13.6]} 35... f5 {[%clk 0:01:08.1]} 36. Kf1
{[%clk 0:00:11.1]} 36... Ng3+ {[%clk 0:01:03.9]} 0-1

[Event "*** Titled Tuesday Blitz"]
[Site "Chess.com"]
[Date "2021.04.20"]
[Round "1"]
[White "secretsuperstar7"]
[Black "m_ezat"]
[Result "1-0"]
[WhiteElo "2238"]
[BlackElo "2535"]
[TimeControl "180+1"]
[EndTime "10:06:34 PDT"]
[Termination "secretsuperstar7 won by checkmate"]

1. d4 {[%clk 0:02:51.3]} 1... Nf6 {[%clk 0:02:56.6]} 2. c4 {[%clk 0:02:50.3]}
2... g6 {[%clk 0:02:56.7]} 3. Nc3 {[%clk 0:02:47.7]} 3... Bg7 {[%clk 0:02:57.3]}
4. e4 {[%clk 0:02:47.5]} 4... d6 {[%clk 0:02:57.6]} 5. Nf3 {[%clk 0:02:47.2]}
5... O-O {[%clk 0:02:58.1]} 6. Be2 {[%clk 0:02:46.4]} 6... e5 {[%clk 0:02:58.5]}
7. d5 {[%clk 0:02:44.3]} 7... a5 {[%clk 0:02:57.8]} 8. h3 {[%clk 0:02:41.8]}
8... Na6 {[%clk 0:02:58.3]} 9. Bg5 {[%clk 0:02:41.3]} 9... Qe8 {[%clk
0:02:55.1]} 10. g4 {[%clk 0:02:22.6]} 10... Nd7 {[%clk 0:02:54.3]} 11. Rg1
{[%clk 0:02:15.1]} 11... Kh8 {[%clk 0:02:52.5]} 12. Qd2 {[%clk 0:01:49.6]} 12...
Ndc5 {[%clk 0:02:49.3]} 13. Bh6 {[%clk 0:01:47]} 13... f6 {[%clk 0:02:42.6]} 14.
Bxg7+ {[%clk 0:01:43.4]} 14... Kxg7 {[%clk 0:02:42]} 15. h4 {[%clk 0:01:42.4]}
15... Qe7 {[%clk 0:02:39.6]} 16. Nh2 {[%clk 0:01:19.2]} 16... c6 {[%clk
0:02:33.6]} 17. Nf1 {[%clk 0:01:17.4]} 17... Nb4 {[%clk 0:02:30.7]} 18. Ne3
{[%clk 0:01:07.7]} 18... Bd7 {[%clk 0:02:26.1]} 19. O-O-O {[%clk 0:00:54.7]}
19... Nxa2+ {[%clk 0:02:25.3]} 20. Kb1 {[%clk 0:00:47]} 20... Nxc3+ {[%clk
0:02:25.3]} 21. Qxc3 {[%clk 0:00:35.6]} 21... Nxe4 {[%clk 0:02:24.8]} 22. Qe1
{[%clk 0:00:35.3]} 22... Nc5 {[%clk 0:02:24.6]} 23. Qd2 {[%clk 0:00:19.7]} 23...
Rfd8 {[%clk 0:02:06.3]} 24. h5 {[%clk 0:00:16.8]} 24... Ne4 {[%clk 0:01:55.9]}
25. Qc2 {[%clk 0:00:13]} 25... Nxf2 {[%clk 0:01:50.9]} 26. Rdf1 {[%clk
0:00:12.8]} 26... Nh3 {[%clk 0:01:51.4]} 27. Rg3 {[%clk 0:00:12.8]} 27... Ng5
{[%clk 0:01:44.5]} 28. hxg6 {[%clk 0:00:12.6]} 28... hxg6 {[%clk 0:01:44]} 29.
Rg2 {[%clk 0:00:11.4]} 29... Rh8 {[%clk 0:01:43]} 30. Rgf2 {[%clk 0:00:11.4]}
30... Raf8 {[%clk 0:01:41.1]} 31. Ng2 {[%clk 0:00:10.3]} 31... Rh2 {[%clk
0:01:37.2]} 32. Nf4 {[%clk 0:00:10.2]} 32... Rh6 {[%clk 0:01:28]} 33. Ng2 {[%clk
0:00:04.8]} 33... cxd5 {[%clk 0:01:24.7]} 34. cxd5 {[%clk 0:00:04.6]} 34... Rh2
{[%clk 0:01:15.1]} 35. Nf4 {[%clk 0:00:04.2]} 35... Rxf2 {[%clk 0:01:10.3]} 36.
Qxg6+ {[%clk 0:00:03.3]} 36... Kh8 {[%clk 0:01:09.6]} 37. Qh6+ {[%clk
0:00:03.7]} 37... Qh7+ {[%clk 0:01:08]} 38. Ng6+ {[%clk 0:00:03.8]} 38... Kg8
{[%clk 0:01:01]} 39. Qxf8# {[%clk 0:00:04.7]} 1-0

[Event "*** Titled Tuesday Blitz"]
[Site "Chess.com"]
[Date "2021.04.20"]
[Round "1"]
[White "GMSrinath"]
[Black "Diaschess88"]
[Result "1-0"]
[WhiteElo "2863"]
[BlackElo "2447"]
[TimeControl "180+1"]
[EndTime "10:06:38 PDT"]
[Termination "GMSrinath won by resignation"]

1. e4 {[%clk 0:02:58.1]} 1... e5 {[%clk 0:02:54.7]} 2. Nf3 {[%clk 0:02:58]} 2...
Nc6 {[%clk 0:02:54.8]} 3. Bb5 {[%clk 0:02:57]} 3... f5 {[%clk 0:02:54.8]} 4. Nc3
{[%clk 0:02:55.8]} 4... fxe4 {[%clk 0:02:54.2]} 5. Nxe4 {[%clk 0:02:56.7]} 5...
Nf6 {[%clk 0:02:54.7]} 6. Qe2 {[%clk 0:02:56]} 6... d5 {[%clk 0:02:53.9]} 7.
Nxf6+ {[%clk 0:02:54.8]} 7... gxf6 {[%clk 0:02:54.8]} 8. d4 {[%clk 0:02:43.3]}
8... Bg7 {[%clk 0:02:53.9]} 9. dxe5 {[%clk 0:02:36.4]} 9... O-O {[%clk
0:02:53.4]} 10. Bxc6 {[%clk 0:02:34]} 10... bxc6 {[%clk 0:02:52.4]} 11. Bf4
{[%clk 0:02:34.5]} 11... Bg4 {[%clk 0:02:43.1]} 12. O-O-O {[%clk 0:02:13.5]}
12... fxe5 {[%clk 0:02:22.1]} 13. Bxe5 {[%clk 0:02:07.3]} 13... Bxe5 {[%clk
0:01:47.5]} 14. Qxe5 {[%clk 0:02:04.3]} 14... Qf6 {[%clk 0:01:34.2]} 15. Qxc7
{[%clk 0:01:58.7]} 15... Rab8 {[%clk 0:01:33.9]} 16. c3 {[%clk 0:01:48.4]} 16...
Qh6+ {[%clk 0:00:55.9]} 17. Kb1 {[%clk 0:01:44.9]} 17... Qg7 {[%clk 0:00:53.6]}
18. Qxc6 {[%clk 0:01:31.9]} 18... Bf5+ {[%clk 0:00:21]} 19. Ka1 {[%clk
0:01:29.3]} 19... Be4 {[%clk 0:00:21.3]} 20. Nd2 {[%clk 0:01:09.6]} 20... Rxf2
{[%clk 0:00:16.7]} 21. Qc5 {[%clk 0:00:45.3]} 21... Rxg2 {[%clk 0:00:13.1]} 22.
Rhg1 {[%clk 0:00:45.1]} 22... Kh8 {[%clk 0:00:08.1]} 23. Rxg2 {[%clk 0:00:42.1]}
23... Qxg2 {[%clk 0:00:08.1]} 24. Qxa7 {[%clk 0:00:41.6]} 24... Rf8 {[%clk
0:00:06.9]} 25. Qd4+ {[%clk 0:00:41.6]} 25... Qg7 {[%clk 0:00:04.2]} 26. Nxe4
{[%clk 0:00:37]} 26... dxe4 {[%clk 0:00:03.3]} 27. Qxe4 {[%clk 0:00:36.9]} 27...
Rb8 {[%clk 0:00:02.1]} 28. Qd4 {[%clk 0:00:36.4]} 28... Qxd4 {[%clk 0:00:01.8]}
29. cxd4 {[%clk 0:00:37.3]} 1-0

[Event "*** Titled Tuesday Blitz"]
[Site "Chess.com"]
[Date "2021.04.20"]
[Round "1"]
[White "crazy_but_lazy"]
[Black "WashUntilHoles"]
[Result "0-1"]
[WhiteElo "2429"]
[BlackElo "2811"]
[TimeControl "180+1"]
[EndTime "10:06:40 PDT"]
[Termination "WashUntilHoles won by resignation"]

1. d4 {[%clk 0:02:54.1]} 1... Nf6 {[%clk 0:02:59.6]} 2. c4 {[%clk 0:02:53.2]}
2... g6 {[%clk 0:03:00.2]} 3. Nf3 {[%clk 0:02:47.3]} 3... Bg7 {[%clk 0:03:00.3]}
4. g3 {[%clk 0:02:47.1]} 4... O-O {[%clk 0:03:00.5]} 5. Bg2 {[%clk 0:02:47.6]}
5... d5 {[%clk 0:02:58.8]} 6. cxd5 {[%clk 0:02:45.4]} 6... Nxd5 {[%clk
0:02:59.7]} 7. Nc3 {[%clk 0:02:45.1]} 7... Nb6 {[%clk 0:02:59.7]} 8. O-O {[%clk
0:02:43.8]} 8... Nc6 {[%clk 0:03:00.3]} 9. e3 {[%clk 0:02:44]} 9... Re8 {[%clk
0:02:55.7]} 10. Nh4 {[%clk 0:02:39.4]} 10... e5 {[%clk 0:02:54.1]} 11. d5 {[%clk
0:02:37.5]} 11... Na5 {[%clk 0:02:43.1]} 12. b3 {[%clk 0:02:33.9]} 12... e4
{[%clk 0:02:36.3]} 13. Bd2 {[%clk 0:01:31.1]} 13... Nxd5 {[%clk 0:02:36]} 14.
Nxe4 {[%clk 0:01:15.8]} 14... Nc6 {[%clk 0:02:34.7]} 15. Rc1 {[%clk 0:00:36.2]}
15... Ncb4 {[%clk 0:02:34.7]} 16. Bxb4 {[%clk 0:00:34.2]} 16... Nxb4 {[%clk
0:02:33.3]} 17. Qxd8 {[%clk 0:00:35.1]} 17... Rxd8 {[%clk 0:02:34]} 18. Rxc7
{[%clk 0:00:35.5]} 18... Nxa2 {[%clk 0:02:24.2]} 19. Nf3 {[%clk 0:00:35.5]}
19... Nb4 {[%clk 0:02:19]} 20. Nfg5 {[%clk 0:00:35.1]} 20... f6 {[%clk
0:02:15.4]} 21. Nh3 {[%clk 0:00:25]} 21... Nd5 {[%clk 0:02:13.8]} 22. Rc5 {[%clk
0:00:22.7]} 22... Be6 {[%clk 0:02:12.3]} 23. Nf4 {[%clk 0:00:14.5]} 23... Nxf4
{[%clk 0:02:12.2]} 24. gxf4 {[%clk 0:00:15]} 24... Bxb3 {[%clk 0:02:12.4]} 25.
Rc7 {[%clk 0:00:15.4]} 25... Bd5 {[%clk 0:02:10.5]} 26. Nc5 {[%clk 0:00:15.8]}
26... b6 {[%clk 0:02:03.1]} 27. Bxd5+ {[%clk 0:00:14.3]} 27... Rxd5 {[%clk
0:02:04]} 28. Ne6 {[%clk 0:00:15]} 28... Bf8 {[%clk 0:01:59.2]} 29. Nxf8 {[%clk
0:00:14.2]} 29... Rxf8 {[%clk 0:01:53.5]} 30. Rxa7 {[%clk 0:00:14.2]} 30... Rf7
{[%clk 0:01:43.8]} 31. Rxf7 {[%clk 0:00:13.1]} 31... Kxf7 {[%clk 0:01:44.7]} 32.
Rb1 {[%clk 0:00:13.6]} 32... b5 {[%clk 0:01:43.2]} 33. Kg2 {[%clk 0:00:14.3]}
33... f5 {[%clk 0:01:42.4]} 34. Kf3 {[%clk 0:00:14.7]} 34... Rc5 {[%clk
0:01:42.2]} 35. Ke2 {[%clk 0:00:13.9]} 35... Ke6 {[%clk 0:01:37.3]} 36. Kd3
{[%clk 0:00:14.3]} 36... Kd5 {[%clk 0:01:35.7]} 37. Rb2 {[%clk 0:00:13.6]} 37...
Kc6 {[%clk 0:01:35.1]} 38. Kd4 {[%clk 0:00:13.6]} 38... Rc4+ {[%clk 0:01:29.2]}
39. Kd3 {[%clk 0:00:13.7]} 39... Kc5 {[%clk 0:01:25.9]} 40. f3 {[%clk
0:00:14.2]} 40... Ra4 {[%clk 0:01:25.1]} 41. e4 {[%clk 0:00:14.2]} 41... Ra3+
{[%clk 0:01:25.4]} 42. Ke2 {[%clk 0:00:14.7]} 42... fxe4 {[%clk 0:01:24.7]} 43.
fxe4 {[%clk 0:00:15.6]} 43... b4 {[%clk 0:01:25.6]} 44. e5 {[%clk 0:00:16.1]}
44... Rh3 {[%clk 0:01:23.7]} 45. Kd1 {[%clk 0:00:15.3]} 45... b3 {[%clk
0:01:17.1]} 46. Kd2 {[%clk 0:00:12.2]} 46... Rxh2+ {[%clk 0:01:15.3]} 47. Kc3
{[%clk 0:00:12.7]} 47... Rh3+ {[%clk 0:01:15.7]} 48. Kd2 {[%clk 0:00:12.7]}
48... Rh2+ {[%clk 0:01:14.1]} 49. Kc3 {[%clk 0:00:13.2]} 49... Rxb2 {[%clk
0:01:15]} 50. Kxb2 {[%clk 0:00:14.1]} 50... h5 {[%clk 0:01:15.6]} 51. Kxb3
{[%clk 0:00:14.5]} 51... h4 {[%clk 0:01:15.9]} 52. Kc2 {[%clk 0:00:15.4]} 52...
h3 {[%clk 0:01:16]} 0-1

[Event "*** Titled Tuesday Blitz"]
[Site "Chess.com"]
[Date "2021.04.20"]
[Round "1"]
[White "Rodalquilar"]
[Black "Raud100"]
[Result "1-0"]
[WhiteElo "2705"]
[BlackElo "2383"]
[TimeControl "180+1"]
[EndTime "10:06:44 PDT"]
[Termination "Rodalquilar won by resignation"]

1. d4 {[%clk 0:03:00.9]} 1... d5 {[%clk 0:02:59.3]} 2. Bf4 {[%clk 0:03:01.1]}
2... c6 {[%clk 0:02:52.5]} 3. e3 {[%clk 0:02:59.5]} 3... Qb6 {[%clk 0:02:52.8]}
4. Qc1 {[%clk 0:02:59.7]} 4... Nf6 {[%clk 0:02:53.3]} 5. c4 {[%clk 0:02:59.3]}
5... Bf5 {[%clk 0:02:52.9]} 6. Nc3 {[%clk 0:02:59]} 6... e6 {[%clk 0:02:52.9]}
7. h3 {[%clk 0:02:56.9]} 7... Nbd7 {[%clk 0:02:51.6]} 8. Nf3 {[%clk 0:02:57.2]}
8... Be7 {[%clk 0:02:50.7]} 9. Be2 {[%clk 0:02:57.5]} 9... O-O {[%clk
0:02:50.4]} 10. O-O {[%clk 0:02:57.9]} 10... dxc4 {[%clk 0:02:43.2]} 11. Nd2
{[%clk 0:02:52]} 11... Qd8 {[%clk 0:02:33.1]} 12. Nxc4 {[%clk 0:02:51.3]} 12...
Nb6 {[%clk 0:02:32.8]} 13. Ne5 {[%clk 0:02:48.8]} 13... Rc8 {[%clk 0:02:28.9]}
14. Rd1 {[%clk 0:02:48.1]} 14... h6 {[%clk 0:02:24.5]} 15. a3 {[%clk 0:02:40.5]}
15... Nbd5 {[%clk 0:02:13.3]} 16. Bh2 {[%clk 0:02:38.9]} 16... a5 {[%clk
0:02:09.5]} 17. Na4 {[%clk 0:02:29.2]} 17... Nd7 {[%clk 0:02:04.3]} 18. Nxd7
{[%clk 0:02:20.6]} 18... Qxd7 {[%clk 0:02:05.2]} 19. Nc5 {[%clk 0:02:21.1]}
19... Bxc5 {[%clk 0:02:02.8]} 20. dxc5 {[%clk 0:02:22]} 20... f6 {[%clk
0:01:53.8]} 21. Bd6 {[%clk 0:02:21.1]} 21... Rfe8 {[%clk 0:01:51.8]} 22. Qc4
{[%clk 0:02:18.4]} 22... Bg6 {[%clk 0:01:46.2]} 23. b4 {[%clk 0:02:13.6]} 23...
axb4 {[%clk 0:01:45.6]} 24. axb4 {[%clk 0:02:14.5]} 24... Qf7 {[%clk 0:01:41.5]}
25. Ra7 {[%clk 0:02:04]} 25... Rcd8 {[%clk 0:01:40]} 26. e4 {[%clk 0:01:58.9]}
26... Rxd6 {[%clk 0:01:34.6]} 27. cxd6 {[%clk 0:01:58]} 27... Nf4 {[%clk
0:01:35.3]} 28. d7 {[%clk 0:01:52.7]} 28... Rd8 {[%clk 0:01:32.6]} 29. Rxb7
{[%clk 0:01:53.1]} 29... Bh5 {[%clk 0:01:27.5]} 30. Bxh5 {[%clk 0:01:43.3]}
30... Qxh5 {[%clk 0:01:28.4]} 31. Re1 {[%clk 0:01:19.7]} 31... Qg5 {[%clk
0:01:14.8]} 32. g3 {[%clk 0:01:09.4]} 32... Nxh3+ {[%clk 0:01:13.9]} 33. Kf1
{[%clk 0:01:09.9]} 33... Qg4 {[%clk 0:01:07.8]} 34. Qe2 {[%clk 0:01:03.4]} 34...
Qg6 {[%clk 0:01:03.2]} 35. Rc1 {[%clk 0:00:56.2]} 35... Ng5 {[%clk 0:01:02.1]}
36. Rxc6 {[%clk 0:00:51.5]} 36... Qf7 {[%clk 0:00:59]} 37. Rc8 {[%clk
0:00:49.4]} 37... Qe7 {[%clk 0:00:58.6]} 38. Rbb8 {[%clk 0:00:45.1]} 38... Nf7
{[%clk 0:00:56.8]} 39. Rxd8+ {[%clk 0:00:38.9]} 39... Nxd8 {[%clk 0:00:57.7]}
40. Qd3 {[%clk 0:00:33.2]} 40... Kh7 {[%clk 0:00:53.4]} 41. b5 {[%clk
0:00:33.6]} 41... e5 {[%clk 0:00:47.2]} 42. Rxd8 {[%clk 0:00:30.4]} 42... Qxd8
{[%clk 0:00:46.6]} 43. b6 {[%clk 0:00:31]} 43... h5 {[%clk 0:00:41.8]} 44. b7
{[%clk 0:00:31.1]} 44... h4 {[%clk 0:00:41.5]} 45. b8=Q {[%clk 0:00:30.6]} 45...
Qxb8 {[%clk 0:00:41.4]} 46. d8=Q {[%clk 0:00:31.1]} 1-0